Cogmind - Beta 13 @@@ ROGUE MODE // 2024.05.31 @ 15:14:55 Player: Barbarossa Result: Destroyed by Y-54 Guardian with Gatling Laser Performance ------------- Evolutions (3) 1500 Regions Visited (5) 1000 Robots Destroyed (116) 580 Value Destroyed (2896) 2896 Prototype IDs (8) 160 Alien Tech Used (0) 0 Bonus (192) 192 TOTAL SCORE: 6328 Bonus ------- High Alert Combat Kills 192 Cogmind --------- Core Integrity 0/700 Matter 279/300 Energy 288/290 System Corruption 0% Temperature Cool (6) Movement Rolling (135) Ox3 Location -7/Lower Caves Parts ------- > --- POWER (1) -------- Reinforced Deuterium Engine > --- PROPULSION (4) --- Wheel Compact Wheel > --- UTILITY (6) ------ Coolant Injector Huge Storage Unit Advanced Targeting Computer Hacking Suite > --- WEAPON (2) ------- (None) > --- INVENTORY (25) --- Reinforced Deuterium Engine Reinforced Deuterium Engine Reinforced Deuterium Engine Advanced Heat Sink Improved Cooling System Improved Cooling System Coolant Injector Coolant Injector High-capacity Battery (250) High-capacity Matter Pod (200) Hacking Suite Hacking Suite Hacking Suite Hacking Suite System Restoration Module System Restoration Module Improved Datajack Peak State ------------ > --- POWER ------------ Reinforced Deuterium Engine > --- PROPULSION ------- Armored Huge Wheel Armored Huge Wheel > --- UTILITY ---------- Improved Cooling System Coolant Injector Huge Storage Unit Advanced Targeting Computer Improved Light Armor Plating Hacking Suite > --- WEAPON ----------- Improved Medium Laser Autogun > --- INVENTORY -------- Reinforced Deuterium Engine Reinforced Deuterium Engine Reinforced Deuterium Engine Wheel Wheel Compact Wheel Improved Cooling System Improved Cooling System Coolant Injector Coolant Injector High-capacity Battery High-capacity Matter Pod Hacking Suite Hacking Suite Hacking Suite Hacking Suite System Restoration Module System Restoration Module Gauss Rifle Improved Datajack [Rating: 49] Favorites ----------- Power Reinforced Deuterium Engine Engine Reinforced Deuterium Engine Propulsion Light Treads Treads Light Treads Leg Aluminum Leg Wheel Wheel Utility Huge Storage Unit Device Heat Sink Storage Huge Storage Unit Processor Improved Signal Interpreter Hackware Hacking Suite Protection Medium Armor Plating Weapon Improved Assault Rifle Energy Gun Improved Medium Laser Energy Cannon Advanced Beam Cannon Ballistic Gun Improved Assault Rifle Special Melee Weapon Datajack Build | -11 -10 -9 -8 -7 -7 ------- Run | Yrd Mat Mat Mat Fac Low Slots Evolved 6 | . . 2 2 2 . Power . | . . . . . . Propulsion 2 | . . 2 . . . Utility 4 | . . . 2 2 . Weapon . | . . . . . . Parts Attached 115 | . 8 56 8 34 9 Power 7 | . 1 3 . 2 1 Engine 7 | . 1 3 . 2 1 Core . | . . . . . . Reactor . | . . . . . . Propulsion 52 | . 3 31 . 13 5 Treads 23 | . . 18 . 5 . Leg . | . . . . . . Wheel 29 | . 3 13 . 8 5 Hover . | . . . . . . Flight . | . . . . . . Utility 32 | . 3 10 4 15 . Device 17 | . 1 8 3 5 . Storage 2 | . 2 . . . . Processor 3 | . . 1 . 2 . Hackware 3 | . . . . 3 . Protection 7 | . . 1 1 5 . Artifact . | . . . . . . Weapon 24 | . 1 12 4 4 3 Energy Gun 10 | . 1 5 2 2 . Energy Cannon 2 | . . 2 . . . Ballistic Gun 11 | . . 4 2 2 3 Ballistic Cannon . | . . . . . . Launcher . | . . . . . . Special Weapon . | . . . . . . Impact Weapon . | . . . . . . Slashing Weapon . | . . . . . . Piercing Weapon . | . . . . . . Special Melee Weapon 1 | . . 1 . . . Unidentified Prototypes 7 | . . 6 1 . . Parts Lost 33 | . 1 4 . 19 9 Power 2 | . 1 . . 1 . Propulsion 13 | . . 2 . 8 3 Utility 10 | . . 1 . 7 2 Weapon 8 | . . 1 . 3 4 Highest Loss Streak 8 | . 1 1 . 8 5 To Critical Strikes 1 | . . . . 1 . Average Slot Usage (%) 95 | . 98 99 99 94 75 Engine 9 | . 13 10 9 6 6 Treads 14 | . . 22 18 14 . Wheel 18 | . 26 21 18 13 15 Device 9 | . 9 10 9 7 12 Storage 10 | . 17 11 9 7 7 Processor 3 | . . . 9 5 7 Hackware 5 | . . . . 13 7 Protection 3 | . . . 8 6 4 Energy Gun 9 | . 9 12 9 6 4 Ballistic Gun 9 | . 18 9 9 7 6 Naked Turns . | . . . . . . Heaviest Build 110 | 12 90 97 103 110 107 Greatest Support 56 | 20 32 32 22 42 56 Greatest Overweight (x) 35 | . 2 4 4 35 3 Average Overweight (x) 3 | . . 3 4 4 1 Largest Inventory Capacity 25 | . 25 25 25 25 25 Average Capacity 23 | . 15 25 25 25 25 Most Carried 25 | . 18 25 25 25 22 Average Carried 22 | . 10 24 23 24 19 Final Capacity 25 | 8 25 25 25 25 25 Final Carried 25 | 6 18 23 25 24 17 Class Distribution -------------------- 43% | Mutant 28% | Scavenger-Mutant 27% | Hacker-Mutant Dominant Class ---------------- Mutant | -10/Materials Scavenger-Mutant | -9/Materials Mutant | -8/Materials Hacker-Mutant | -7/Factory Mutant | -7/Lower Caves Resources | -11 -10 -9 -8 -7 -7 ----------- Run | Yrd Mat Mat Mat Fac Low Matter Collected 2596 | 161 309 1141 176 502 307 Remotely . | . . . . . . Salvage Created 5070 | . 490 2690 322 1291 277 Parts 278 | . 28 160 17 66 7 Haulers Intercepted 11 | . 2 6 2 1 . Recyclers Shooed 10 | . 2 4 1 3 . Parts Field Recycled . | . . . . . . Retrieved Matter . | . . . . . . Parts Self-Destructed 7 | . . . . . 7 Prevented . | . . . . . . Kills | -11 -10 -9 -8 -7 -7 ------- Run | Yrd Mat Mat Mat Fac Low Combat Hostiles Destroyed 68 | . 5 40 3 16 4 Guns 68 | . 5 40 3 16 4 Classes Destroyed 14 | . 5 7 1 1 . Worker 15 | . 2 5 2 6 . Builder 2 | . . 1 . 1 . Tunneler 1 | . . 1 . . . Hauler 11 | . 2 6 2 1 . Recycler 12 | . 2 6 . 4 . Operator 4 | . 2 2 . . . Watcher 6 | . . 4 . 2 . Swarmer 8 | . . 4 . 4 . Grunt 37 | . 5 25 . 7 . Brawler 3 | . . 1 . 1 1 Duelist 4 | . . 2 . . 2 Sentry 13 | . . 8 2 2 1 Hunter 2 | . . . 1 1 . Programmer 1 | . . . . 1 . Best Kill Streak 10 | . 4 10 5 5 2 Combat Bots Only 6 | . 3 6 2 4 2 Max Kills in Single Turn 2 | . 1 2 1 1 1 Gunslinging . | . . . . . . Exploded . | . . . . . . Melee . | . . . . . . Uniques/NPCs Destroyed . | . . . . . . Combat | -11 -10 -9 -8 -7 -7 -------- Run | Yrd Mat Mat Mat Fac Low Hostile Shots Fired 659 | . 34 189 12 239 185 Missed 209 | . 8 56 4 79 62 Damage Taken 6477 | . 307 1710 127 2385 1948 Core 1027 | . 61 230 31 196 509 Absorbed by Shields . | . . . . . . Core Remaining (%) 77 | 100 75 42 94 . . Volleys Fired 381 | . 49 159 26 112 35 Largest 2 | . 2 2 2 2 2 Hottest 112 | . 70 112 88 79 84 Shots Fired 734 | . 98 315 52 223 46 Gun 734 | . 98 315 52 223 46 Cannon . | . . . . . . Launcher . | . . . . . . Special . | . . . . . . Kinetic 374 | . 72 130 26 111 35 Thermal 360 | . 26 185 26 112 11 Explosive . | . . . . . . Electromagnetic . | . . . . . . Robot Hit Streak 19 | . 5 13 8 16 19 Robot Miss Streak 7 | . 4 7 5 4 2 Penetration Max 1 | . . . . . 1 Secondary Targets 16 | . . 8 . 8 . Max Gunslinging Chain 1 | . . 1 . 1 . Shots Hit Robots 500 | . 60 207 37 157 39 Core Hits 211 | . 25 105 16 52 13 Critical Kills 2 | . 1 1 . . . Critical Parts Destroyed 1 | . . . . 1 . Critical Strikes 22 | . 1 12 1 6 2 Burn 19 | . . 11 1 5 2 Destroy 3 | . 1 1 . 1 . Melee Attacks . | . . . . . . Impact . | . . . . . . Slashing . | . . . . . . Piercing . | . . . . . . Sneak Attacks . | . . . . . . Combat Hostiles . | . . . . . . Follow-up Attacks . | . . . . . . Damage Inflicted 8151 | . 744 3388 570 2714 735 Guns 8141 | . 744 3388 570 2714 725 Cannons . | . . . . . . Explosions . | . . . . . . Melee . | . . . . . . Ramming 10 | . . . . . 10 Kinetic 3738 | . 506 1185 250 1226 571 Thermal 4403 | . 238 2203 320 1488 154 Explosive . | . . . . . . Electromagnetic . | . . . . . . Impact . | . . . . . . Slashing . | . . . . . . Piercing . | . . . . . . Highest Corruption 1 | . . . . 1 . Average Corruption 1 | . . . . 1 . Corruption Purged 1 | . . . . 1 . Corruption Blocked . | . . . . . . Overload Shots . | . . . . . . Overflow Damage . | . . . . . . Projectiles . | . . . . . . Explosions . | . . . . . . Melee . | . . . . . . Knockbacks . | . . . . . . Impact . | . . . . . . Kinetic . | . . . . . . Secondary . | . . . . . . Self-Inflicted Damage 5 | . . . . . 5 Shots . | . . . . . . Rammed 1 | . . . . . 1 Targets Rammed 1 | . . . . . 1 Kicked . | . . . . . . Crushed . | . . . . . . Highest Temperature 295 | . 12 295 39 87 17 Average Temperature 63 | . 4 96 8 30 4 Received Heat Transfer 1806 | . 171 714 27 654 240 Siege Activations . | . . . . . . Robots Corrupted . | . . . . . . Combat Hostiles . | . . . . . . Parts Fried . | . . . . . . Impact Corruptions . | . . . . . . Robots Melted . | . . . . . . Combat Hostiles . | . . . . . . Parts Melted 18 | . 1 9 1 6 1 Heat Transferred 10524 | . 703 5427 657 3256 481 Parts Sabotaged . | . . . . . . Parts Stolen . | . . . . . . Parts Stripped . | . . . . . . Power Chain Reactions . | . . . . . . Alert | -11 -10 -9 -8 -7 -7 ------- Run | Yrd Mat Mat Mat Fac Low Peak Influence 650 | . 134 650 484 173 . Initial 274 | . . 33 274 60 . Average 221 | . 48 387 347 66 . Maximum Alert Level 2 | . . 2 2 . . Low Security (%) 55 | . 100 12 4 100 . Level 1 21 | . . 38 74 . . Level 2 22 | . . 49 20 . . Level 3 . | . . . . . . Level 4 . | . . . . . . Level 5 . | . . . . . . High Security . | . . . . . . Max Security . | . . . . . . Squads Dispatched 15 | . 2 5 2 6 . Investigation 5 | . 1 2 1 1 . Extermination 2 | . . . . 2 . Reinforcement 7 | . 1 2 1 3 . Assault 1 | . . 1 . . . Garrison . | . . . . . . Intercept . | . . . . . . Searches Triggered . | . . . . . . Construction Impeded . | . . . . . . Haulers Reinforced . | . . . . . . Active Scanning Responses . | . . . . . . Cargo Convoy Interrupts . | . . . . . . Stealth | -11 -10 -9 -8 -7 -7 --------- Run | Yrd Mat Mat Mat Fac Low Distress Signals 2 | . . 1 . 1 . Communications Jammed . | . . . . . . Distress Signals . | . . . . . . Times Spotted 117 | . 11 59 9 28 10 Peak Tracking Total 6 | . 4 6 3 4 5 Tactical Retreats 6 | . . 3 . 2 1 Traps | -11 -10 -9 -8 -7 -7 ------- Run | Yrd Mat Mat Mat Fac Low Traps Triggered 6 | . . 3 . 3 . Indirectly . | . . . . . . Trap Hack Attempts 6 | . . 6 . . . Triggered . | . . . . . . Disarmed . | . . . . . . Reprogrammed 2 | . . 2 . . . Reused 1 | . . 1 . . . Traps Extracted . | . . . . . . Installed . | . . . . . . Triggered 1 | . . 1 . . . Machines | -11 -10 -9 -8 -7 -7 ---------- Run | Yrd Mat Mat Mat Fac Low Machines Disabled 4 | . . 2 2 . . Max in Single Turn 1 | . . 1 1 . . Garrison Access 2 | . . . . 2 . Machines Repaired . | . . . . . . Machines Dismantled . | . . . . . . Machines Sabotaged . | . . . . . . Overloaded Fab Kills . | . . . . . . Hacking | -11 -10 -9 -8 -7 -7 --------- Run | Yrd Mat Mat Mat Fac Low Machines Accessed 25 | . 5 9 3 8 . Terminals 15 | . 5 6 2 2 . Fabricators 2 | . . . . 2 . Repair Stations 2 | . . 1 . 1 . Recycling Units 1 | . . . . 1 . Scanalyzers 3 | . . 2 1 . . Garrison Access 2 | . . . . 2 . Total Hacks 78 | . 15 36 9 18 . Successful 47 | . 10 22 5 10 . Failed 31 | . 5 14 4 8 . Catastrophic 2 | . . . . 2 . Database Lockouts . | . . . . . . Manual 43 | . 12 18 5 8 . Terminals 49 | . 15 23 5 6 . Fabricators 5 | . . . . 5 . Repair Stations 5 | . . 3 . 2 . Recycling Units 1 | . . . . 1 . Scanalyzers 14 | . . 10 4 . . Garrison Access 4 | . . . . 4 . Terminal Hacks 9 | . 2 5 1 1 . Prototype ID Bank 1 | . . 1 . . . Alert Level 1 | . . . . 1 . Unreport Threat 4 | . . 3 1 . . Locate Traps 3 | . 2 1 . . . Fabricator Hacks 2 | . . . . 2 . Network Status 1 | . . . . 1 . Build 1 | . . . . 1 . Repair Station Hacks 2 | . . 1 . 1 . Scan Component 2 | . . 1 . 1 . Recycling Unit Hacks 1 | . . . . 1 . Report Inventory 1 | . . . . 1 . Scanalyzer 12 | . . 9 3 . . Insert Component 6 | . . 5 1 . . Analyze 6 | . . 4 2 . . Garrison Access Hacks 2 | . . . . 2 . Seal Access 2 | . . . . 2 . Unauthorized Hacks 19 | . 8 7 1 3 . Terminals 19 | . 8 7 1 3 . Assimilate 2 | . 2 . . . . Botnet 14 | . 5 6 1 2 . Operators 3 | . 1 1 . 1 . Fabricators . | . . . . . . Repair Stations . | . . . . . . Recycling Units . | . . . . . . Scanalyzers . | . . . . . . Garrison Access . | . . . . . . Data Cores Recovered . | . . . . . . Used . | . . . . . . Hacking Detections 24 | . 5 9 3 7 . Full Trace Events 4 | . 1 1 1 1 . Feedback Events . | . . . . . . Feedback Blocked . | . . . . . . Robot Schematics Acquired . | . . . . . . Robots Built . | . . . . . . Authchips . | . . . . . . Time . | . . . . . . Total Robot Build Rating . | . . . . . . Part Schematics Acquired 5 | . . 4 1 . . Parts Built 1 | . . . . 1 . Authchips . | . . . . . . Time 42 | . . . . 42 . Total Part Build Rating 4 | . . . . 4 . Parts Repaired . | . . . . . . Time . | . . . . . . Parts Recycled . | . . . . . . Recycled Matter . | . . . . . . Retrieved Matter . | . . . . . . Retrieved Components . | . . . . . . Parts Scanalyzed 6 | . . 5 1 . . Part Schematics Acquired 5 | . . 4 1 . . Parts Damaged 1 | . . 1 . . . Bothacking | -11 -10 -9 -8 -7 -7 ------------ Run | Yrd Mat Mat Mat Fac Low Used RIF Installer . | . . . . . . Robots Hacked . | . . . . . . Non-combat . | . . . . . . Combat . | . . . . . . Robot Hacks Applied . | . . . . . . Relay Couplers Released . | . . . . . . Fabnet Peak Effective % . | . . . . . . Robots Rewired . | . . . . . . Allies Hacked . | . . . . . . Hacks Repelled . | . . . . . . Allies | -11 -10 -9 -8 -7 -7 -------- Run | Yrd Mat Mat Mat Fac Low Total Allies . | . . . . . . Largest Group . | . . . . . . Highest-Rated Group . | . . . . . . Highest-Rated Ally . | . . . . . . Total Orders . | . . . . . . Ally Attacks . | . . . . . . Total Damage . | . . . . . . Kills . | . . . . . . Allies Corrupted . | . . . . . . Allies Melted . | . . . . . . Intel | -11 -10 -9 -8 -7 -7 ------- Run | Yrd Mat Mat Mat Fac Low Robot Analysis Total . | . . . . . . Derelict Logs Recovered . | . . . . . . Drone Launches . | . . . . . . Drone Recoveries . | . . . . . . Exploration | -11 -10 -9 -8 -7 -7 ------------- Run | Yrd Mat Mat Mat Fac Low Turns Passed 5730 | . 710 2239 422 1965 394 Spaces Moved 2965 | 1 427 1118 208 958 253 Core 1 | . . . . 1 . Treads 21 | . . 1 . 20 . Legs 27 | 1 26 . . . . Wheels 2916 | . 401 1117 208 937 253 Hover . | . . . . . . Flight . | . . . . . . Fastest Speed 90 | 120 90 130 145 135 115 Average Speed 139 | 120 111 139 145 157 115 Slowest Speed 1800 | 120 130 480 145 1800 145 Overloaded Moves . | . . . . . . Propulsion Burnouts . | . . . . . . Robots Hopped . | . . . . . . Cave-ins Triggered . | . . . . . . Exploration Rate (%) 41 | 1 68 89 29 26 33 Regions Visited 5 Branch Regions 1 Pre-discovered Areas . | . . . . . . Known Exits Taken 2 | . . 1 1 . . Unknown Exits Taken 3 | 1 1 . . 1 . Scrap Searched . | . . . . . . Spaces Dug . | . . . . . . Terrain Destroyed 1 | . . . . . 1 Melee . | . . . . . . Projectile 1 | . . . . . 1 AOE . | . . . . . . Terrain Rammed . | . . . . . . Walls Destroyed . | . . . . . . Machines Disabled . | . . . . . . Actions | -11 -10 -9 -8 -7 -7 --------- Run | Yrd Mat Mat Mat Fac Low Total 3865 | . 562 1494 283 1216 310 Wait 223 | . 58 74 24 57 10 Move 2960 | . 426 1117 207 957 253 Hop . | . . . . . . Pick Up 82 | . 16 31 9 24 2 Fast Attach 25 | . 1 12 . 10 2 Attach 30 | . 1 7 2 13 7 Detach 2 | . . . . 2 . Swap 60 | . 6 37 6 11 . Drop 87 | . 5 51 9 22 . Fire 381 | . 49 159 26 112 35 Melee . | . . . . . . Ram 1 | . . . . . 1 Kick . | . . . . . . Crush . | . . . . . . Escape Stasis 8 | . . . . 8 . Rewire . | . . . . . . Trap 6 | . . 6 . . . Miscellaneous . | . . . . . . Route ------- -11/Scrapyard -10/Materials (discovered 2 exits: *Mat / [*Min]) -9/Materials (discovered 4 exits: *Mat x3 / [*Min]) -8/Materials -7/Factory -7/Lower Caves History --------- Turn | Location | Event 1 | -11/Scrapyard | Discovered new exit (range 0) 1 | -11/Scrapyard | Entered Materials 282 | -10/Materials | Discovered new exit (range 13) 317 | -10/Materials | Build established: Mutant 692 | -10/Materials | Discovered new exit (range 10) 701 | -10/Materials | Derelicts attacked the area 711 | -10/Materials | Entered another Materials area 711 | -9/Materials | Evolved 2 slots: Propulsion x2 1258 | -9/Materials | Discovered new exit (range 15) 1836 | -9/Materials | Build established: Scavenger-Mutant 2295 | -9/Materials | Discovered new exit (range 16) 2547 | -9/Materials | Discovered new exit (range 9) 2595 | -9/Materials | Core integrity fell below 50% 2627 | -9/Materials | Discovered new exit (range 15) 2711 | -9/Materials | First assault squad dispatched 2950 | -9/Materials | Identified exit to Materials 2950 | -9/Materials | Entered another Materials area 2950 | -8/Materials | Evolved 2 slots: Utility x2 3109 | -8/Materials | Build established: Mutant 3338 | -8/Materials | Discovered new exit (range 3) 3340 | -8/Materials | Identified exit to Factory 3372 | -8/Materials | Entered Factory 3372 | -7/Factory | Evolved 2 slots: Utility x2 3506 | -7/Factory | Fabricated Imp. Cooling System (x1) 3686 | -7/Factory | Build established: Hacker-Mutant 4971 | -7/Factory | Lost 8 parts (2n4u2w) 5269 | -7/Factory | Build established: Scavenger-Mutant 5308 | -7/Factory | Discovered new exit (range 4) 5337 | -7/Factory | Entered Lower Caves 5363 | -7/Lower Caves | Lost 4 parts (3n1w) 5512 | -7/Lower Caves | Attracted the attention of an 0b10 outpost 5595 | -7/Lower Caves | Core integrity fell below 50% 5614 | -7/Lower Caves | Lost 3 parts (1u2w) 5623 | -7/Lower Caves | Build established: Mutant 5690 | -7/Lower Caves | Attracted the attention of an 0b10 checkpoint 5709 | -7/Lower Caves | Core integrity fell below 20% 5731 | -7/Lower Caves | Destroyed by Y-54 Guardian with Gatling Laser Last Messages --------------- 05625_ Acquired 60 matter. 05626_ Imp. Treads fries itself beyond repair. 05627_ KE Penetrator fries itself beyond repair. 05629_ Acquired Adv. Heat Sink. 05633_ Acquired Rnf. Deuterium Engine. 05634_ Acquired 66 matter. 05690_ Y-54 Guardian: "INTERCEPTING UNREGISTERED DERELICT." 05700_ Arm. Huge Wheel destroyed. 05702_ Slug penetrates S-27 Virus. 05704_ Gauss Rifle destroyed. 05704_ Slammed into S-27 Virus. 05705_ S-27 Virus destroyed. 05707_ Acquired Autogun. 05712_ S-27 Virus destroyed. 05713_ Arm. Huge Wheel destroyed. 05717_ Acquired 30 matter. 05719_ VTOL Module fries itself beyond repair. 05721_ Autogun destroyed. 05730_ Wheel destroyed. Map ----- +----------------------------------------------------+ | ?????????????????????????????????????????????????? | | ?????????????????????????????????????????????????? | | ?????????????????????????????????????????????????? | | ?????????????????????????????????????????????????? | | ?????????????????????????????????????????????????? | | ?????????????????????????????????????????????????? | | ?????????????????????????????????????????????????? | | ?????????????????????????????????????????????????? | | ?????????????????????????????????????????????????? | | ?????????????????????????????????????????????????? | | ??????????????????????????????????????? ###??????? | | ?????????????????????????????????????? # ?????? | | ?????????????????????????????????????? ??????? | | ????????????????? ??????????????????# ##?????? | | ?????????????????# ????????????????## #?????? | | ?????????????????# ???????????????# ##??##? | | ?????????????????# ###???????????? ##?? # | | ?????????????????# #####??????? #??? | | ??????????????????? ##?????## ### | | ?????????????????#??# ????## ? | | ?????????????????# ?# #????# ?? | | ?????????????????# # ###### #????? | | ?????????????????# #?????? | | ????????????????????# Y % #??????? | | ????????????????????## #### #??????# | | ?????????????????????####@ ss###??# #?????## | | ????????????????????????# #????# ########?# | | ????????????????????????# #????# ### | | ????????????????????????## ##???# | | ?????????????????????????## #???## ## | | ??????????????????????????## #???# #### ###### | | ???????????????????????????# #??# #??####???## | | ???????????????????????????# ##??# #?????????# | | ???????????????????????????####???## #????????# | | ???????????????????????????????????####???????# | | ?????????????????????????????????????????????# | | ????????????????????????????????????????????# # | | ???????????????????????????????????????????? #? | | ??????????????????????????????????????????? #?? | | ???????????????????????????????????????????? ???? | | ???????????????????????????????????????????? ????? | | ?????????????????????????????????????????????????? | | ?????????????????????????????????????????????????? | | ?????????????????????????????????????????????????? | | ?????????????????????????????????????????????????? | | ?????????????????????????????????????????????????? | | ?????????????????????????????????????????????????? | | ?????????????????????????????????????????????????? | | ?????????????????????????????????????????????????? | | ?????????????????????????????????????????????????? | +----------------------------------------------------+ Best States ------------- Heat Dissipation 61 Coolant Potential 65 Energy Generation 16 Energy Capacity 290 Matter Stores 300 Matter Capacity 500 Sight Range 16 Robot Scan Range 14 Terrain Scan Density 10 Armor Coverage 225 Evasion (%) 50 Targeting Accuracy 8 Recoil Reduction 2 Offensive Hacking 20 Defensive Hacking 10 Item Schematics ----------------- Imp. Medium Laser | -9/Materials | Scanalyzed Com. Wheel | -9/Materials | Scanalyzed Hcp. Matter Pod | -9/Materials | Scanalyzed Hacking Suite | -9/Materials | Scanalyzed Cld. Ion Engine | -8/Materials | Scanalyzed Robot Schematics ------------------ None Fabricated ------------ Imp. Cooling System | x1 | -7/Factory | Preloaded Alien Tech Used ----------------- None Achievements -------------- None Challenges ------------ None Game ------ Seed SpliceGuidanceSuperbattery Manual? 0 Play Time 00:48:23 Cumulative 200.1 hours Start 2024.05.30 @ 15:59:21 End 2024.05.31 @ 15:14:55 Sessions 2 Manual Loads 0 Difficulty Rogue Special Mode None Game No. 366 Rogue 366 Adventurer 0 Explorer 0 Win Type - Total 0 Types 0/0/0/0/0/0/0/0/0 Lore% 45 Gallery% 56 Achievement% 39 Wizard Run 0 Options --------- Layout 1 ASCII 0 Keyboard 0 Movement Mouse Keybinds 0 Fullscreen 1 Font 24/Smallcaps Map View 50x40 Zoom Use 0% Tactical HUD 1 Map Filters NONE Filters NONE Steam 1 RUN: 1d0be790-8b5b-4f68-a849-ab2a4d88a736